bitfinex/quotes_ETHUSD_20250731
["timestamp","ask_amount","ask_price","bid_price","bid_amount"]
[1753944630415,0.04,3877.9,3877.8,12.75345338]
[1753944631920,0.042,3877.9,3877.8,12.75345338]
[1753944632121,0.042,3877.9,3877.8,17.5627763]
[1753944635126,0.042,3877.9,3877.8,16.6480763]
[1753944635324,0.042,3877.9,3877.8,14.8671047]
[1753944636045,0.042,3877.9,3877.8,15.3557047]
[1753944636353,0.042,3877.9,3877.4,2.57904781]
[1753944636510,0.042,3877.9,3877.6,3.0]
[1753944636716,0.042,3877.9,3877.7,6.5087992]
[1753944637451,0.042,3877.9,3877.8,2.57878178]
[1753944637672,0.28348328,3877.9,3877.8,2.57878178]
[1753944638549,0.28348328,3877.9,3877.8,7.9371047]
[1753944638760,0.28348328,3877.9,3877.8,10.60950609]
[1753944639461,0.28348328,3877.9,3877.8,8.8649047]
[1753944639764,0.28348328,3877.9,3877.8,3.932]
[1753944639964,0.042,3877.9,3877.8,3.932]
[1753944640137,0.042,3877.9,3877.8,6.51078178]
[1753944640944,0.042,3877.9,3877.8,3.932]
[1753944641535,0.042,3877.9,3877.8,6.51078178]
[1753944643067,0.042,3877.9,3877.8,3.932]
[1753944644660,0.042,3877.9,3877.4,0.55]
[1753944644966,0.24166128,3877.8,3877.5,9.50993556]
[1753944645170,0.24166128,3877.7,3877.5,9.50993556]
[1753944645379,0.2839,3877.9,3877.5,9.50993556]
[1753944645772,0.2416343,3877.8,3877.5,9.50995068]
[1753944645941,0.2839,3877.9,3877.5,9.50995068]
[1753944646146,0.24163496,3877.8,3877.5,9.50996353]
[1753944646445,0.042,3877.9,3877.5,9.50996353]
[1753944646648,0.2416453,3877.8,3877.5,6.931]
[1753944646845,0.2839,3877.9,3877.5,6.931]
[1753944647046,0.2416453,3877.8,3877.5,6.931]
[1753944647252,0.2416453,3877.7,3877.5,6.931]
[1753944647573,0.2416453,3877.6,3877.5,9.50997987]
[1753944648379,0.2416453,3877.6,3877.5,10.43777987]
[1753944649275,0.042,3877.9,3877.5,9.50997987]
[1753944649478,0.24158915,3877.8,3877.6,2.57890793]
[1753944649679,0.042,3877.9,3877.7,3.93]
[1753944649879,0.24158915,3877.8,3877.7,3.93]
[1753944650080,0.24158915,3877.8,3877.7,6.50884828]
[1753944650851,0.24158915,3877.8,3877.7,3.93]
[1753944651561,0.24158915,3877.8,3877.7,6.50884828]
[1753944652486,0.042,3877.9,3877.7,6.50884828]
[1753944652801,0.24155625,3877.8,3877.7,6.50884828]
[1753944653461,0.24155625,3877.8,3877.7,6.99744828]
[1753944653694,0.24155625,3877.8,3877.7,7.43664828]
[1753944653859,0.24355625,3877.8,3877.7,7.43664828]
[1753944656413,0.24355625,3877.8,3877.7,4.8578]
[1753944656601,0.24355625,3877.8,3877.7,3.93]
[1753944656907,0.24355625,3877.8,3877.7,6.50884828]
[1753944657059,0.24355625,3877.8,3877.7,3.93]
[1753944657758,0.24355625,3877.8,3877.7,6.50884828]
[1753944658284,0.24355625,3877.8,3877.7,3.93]
[1753944658881,0.24355625,3877.8,3877.7,6.50884828]
[1753944659080,0.24355625,3877.8,3877.7,3.93]
[1753944660994,0.24356274,3877.8,3877.7,3.93]
[1753944661313,0.48546274,3877.8,3877.7,3.925]
[1753944661458,0.24356274,3877.8,3877.7,3.925]
[1753944662604,0.24356274,3877.8,3877.7,12.2399712]
[1753944662794,0.24356274,3877.8,3877.7,13.7219609]
[1753944666110,0.24356274,3877.8,3877.7,0.9278]
[1753944666310,0.002,3877.8,3877.7,4.8528]
[1753944666622,0.24369259,3877.8,3877.7,4.8528]
[1753944666828,0.24369259,3877.8,3877.7,12.2399712]
[1753944667591,0.24369259,3877.8,3877.5,0.001]
[1753944667797,0.24170738,3877.7,3877.6,3.926]
[1753944668014,0.24170738,3877.7,3877.5,0.001]
[1753944668221,0.24170738,3877.6,3877.5,0.001]
[1753944668423,0.24170738,3877.6,3877.5,3.926]
[1753944668630,0.24170738,3877.6,3877.5,4.4001]
[1753944668807,0.24170738,3877.6,3877.5,4.8445]
[1753944669211,0.24171412,3877.6,3877.5,4.8445]
[1753944669597,0.24170943,3877.6,3877.5,4.8445]
[1753944670016,0.002,3877.8,3877.6,0.55]
[1753944670202,0.002,3877.8,3877.7,11.3121712]
[1753944670605,0.002,3877.8,3877.7,12.7806712]
[1753944671011,0.002,3877.8,3877.7,15.7806712]
[1753944672831,0.24376137,3877.8,3877.7,15.7806712]
[1753944673130,0.002,3877.8,3877.7,18.18127468]
[1753944673640,0.002,3877.8,3877.7,14.24327468]
[1753944673821,0.002,3877.8,3877.7,18.18127468]
[1753944678634,0.0065,3878.0,3877.9,3.12871528]
[1753944678841,0.0065,3878.0,3877.9,10.06471528]
[1753944679062,0.0065,3878.0,3877.9,13.05910763]
[1753944683366,0.0065,3878.0,3877.9,2.57871528]
[1753944683573,0.0065,3878.0,3877.9,6.51271528]
[1753944684145,0.0065,3878.0,3877.9,3.05281528]
[1753944684436,0.0065,3878.0,3877.8,2.57875579]
[1753944684634,0.0065,3878.0,3877.9,6.51471528]
[1753944684836,0.0065,3878.0,3877.9,3.936]
[1753944685045,0.0065,3878.0,3877.9,6.51471528]
[1753944686070,0.0065,3878.0,3877.9,3.936]
[1753944686265,0.24812093,3878.0,3877.7,0.4741]
[1753944686481,0.0065,3878.0,3877.8,3.936]
[1753944686770,0.0065,3878.0,3877.8,6.51473311]
[1753944687469,0.0065,3878.0,3877.8,2.57873311]
[1753944687766,0.0065,3878.0,3877.9,3.935]
[1753944688072,0.24814498,3878.0,3877.9,6.51371528]
[1753944688852,0.24814498,3878.0,3877.9,6.98781528]
[1753944689254,0.24814498,3878.0,3877.9,7.43221528]
[1753944690643,0.24814498,3878.0,3877.9,6.51171528]
[1753944691854,0.24814498,3878.0,3877.6,4.80932292]
[1753944691855,0.24814498,3878.0,3877.6,0.001]
[1753944692049,0.24174778,3877.9,3877.7,3.932]
[1753944692262,0.24174778,3877.8,3877.7,2.57884828]
[1753944692561,0.24174778,3877.8,3877.7,3.932]
[1753944692964,0.24174778,3877.8,3877.6,0.001]
[1753944693171,0.2484,3878.0,3877.7,3.932]
[1753944693344,0.24180932,3877.9,3877.7,3.932]
[1753944693542,0.0065,3878.0,3877.6,0.001]
[1753944693543,0.24180932,3877.8,3877.6,0.001]
[1753944693775,0.24180932,3877.7,3877.6,0.001]
[1753944693977,0.24180932,3877.7,3877.6,8.74132292]
[1753944694182,0.24180932,3877.7,3877.6,11.32023771]
[1753944694550,0.24180932,3877.7,3877.6,8.74132292]
[1753944694974,0.24180932,3877.7,3877.6,11.32023771]
[1753944695589,0.24175629,3877.7,3877.6,11.32023771]
[1753944696556,0.24175629,3877.7,3877.6,11.81423771]
[1753944696885,0.24175629,3877.7,3877.6,12.24743771]
[1753944697797,0.24175629,3877.7,3877.6,12.24643771]
[1753944698193,0.24174337,3877.7,3877.6,12.24643771]
[1753944698955,0.0065,3878.0,3877.9,2.57871528]
[1753944699187,0.24824448,3878.0,3877.9,11.3180382]
[1753944699574,0.24824448,3878.0,3877.9,12.2452382]
[1753944700702,0.24824448,3878.0,3877.9,13.98562062]
[1753944701288,0.24824448,3878.0,3877.9,14.53562062]
[1753944702289,0.24824448,3878.0,3877.9,8.3142382]
[1753944702601,0.24824448,3878.0,3877.9,11.3260382]
[1753944703104,0.24824448,3878.0,3877.9,12.2532382]
[1753944704401,0.24824448,3878.0,3877.9,11.3260382]
[1753944704787,0.24824448,3878.0,3877.9,8.74732292]
[1753944705097,0.24824448,3878.0,3877.9,11.3260382]
[1753944706304,0.24824448,3878.0,3877.9,11.8200382]
[1753944706602,0.24824448,3878.0,3877.9,11.3260382]
[1753944706903,0.24824448,3878.0,3877.9,6.51671528]
[1753944707105,0.24824448,3878.0,3877.9,3.938]
[1753944707806,0.24824448,3878.0,3877.8,2.57877612]
[1753944708001,0.24174448,3877.9,3877.6,7.38818235]
[1753944708203,0.24174448,3877.8,3877.6,4.80932292]
[1753944708503,0.2417372,3877.7,3877.6,7.38823338]
[1753944708674,0.2417372,3877.7,3877.6,11.32523338]
[1753944708893,0.2417372,3877.7,3877.6,12.25243338]
[1753944709502,0.0065,3878.0,3877.6,4.8652]
[1753944709704,0.2417415,3877.9,3877.7,2.57878624]
[1753944709881,0.0065,3878.0,3877.8,3.937]
[1753944710071,0.24174081,3877.9,3877.8,7.44298178]
[1753944712611,0.24174081,3877.9,3877.8,3.937]
[1753944712822,0.24174081,3877.9,3877.8,6.51578178]
[1753944713700,0.24174081,3877.9,3877.8,3.937]
[1753944714022,0.24174081,3877.9,3877.8,3.934]
[1753944714400,0.24174081,3877.9,3877.7,2.57883433]
[1753944714721,0.24174081,3877.8,3877.7,3.50603433]
[1753944714884,0.24174081,3877.8,3877.7,7.44003433]
[1753944715516,0.24187545,3877.8,3877.7,7.44003433]
[1753944715904,0.2418755,3877.8,3877.7,3.934]
[1753944716298,0.2418755,3877.8,3877.7,6.51284828]
[1753944716719,0.2418755,3877.8,3877.7,6.51184828]
[1753944716911,0.2418755,3877.8,3877.7,3.933]
[1753944717112,0.2418755,3877.8,3877.7,6.51184828]
[1753944717425,0.2418755,3877.8,3877.7,7.43904828]
[1753944717826,0.2418755,3877.8,3877.7,12.2473712]
[1753944719827,0.2418755,3877.8,3877.7,8.3143712]
[1753944719998,0.2418755,3877.8,3877.7,3.932]
[1753944722594,0.0085,3878.0,3877.7,4.426]
[1753944722831,0.24190478,3877.9,3877.7,4.426]
[1753944722998,0.24190478,3877.8,3877.7,4.426]
[1753944723199,0.24190478,3877.8,3877.7,3.932]
[1753944723899,0.24189585,3877.8,3877.7,3.932]
[1753944725136,0.24189585,3877.8,3877.7,4.401]
[1753944726024,0.24189585,3877.8,3877.7,4.399]
[1753944727001,0.24189585,3877.8,3877.7,6.97784828]
[1753944727230,0.24189585,3877.8,3877.7,12.2395712]
[1753944727911,0.24189585,3877.8,3877.7,7.43124828]
[1753944730021,0.24186176,3877.8,3877.7,7.43124828]
[1753944735014,0.0085,3878.0,3877.8,2.57873353]
[1753944735200,0.0085,3878.0,3877.9,6.50571528]
[1753944735714,0.0085,3878.0,3877.9,4.396]
[1753944735902,0.25038241,3878.0,3877.9,4.396]
[1753944736103,0.0085,3878.0,3877.9,7.42811528]
[1753944738028,0.25037827,3878.0,3877.9,7.42811528]
[1753944739708,0.25037827,3878.0,3877.9,3.927]
[1753944740950,0.25037827,3878.0,3877.9,3.923]
[1753944742873,0.25037827,3878.0,3877.6,0.001]
[1753944743035,0.48377827,3877.9,3877.7,3.923]
[1753944743372,0.0085,3878.0,3877.6,0.001]
[1753944743373,0.48377827,3877.8,3877.6,0.001]
[1753944743573,0.2419,3877.8,3877.7,3.923]
[1753944743881,0.24194065,3877.8,3877.7,3.923]
[1753944744160,0.24194065,3877.8,3877.6,0.001]
[1753944744462,0.2504,3878.0,3877.9,0.001]
[1753944744463,0.0085,3878.0,3877.9,0.001]
[1753944744655,0.25043155,3878.0,3877.9,0.001]
[1753944747133,0.49233155,3878.0,3877.9,0.001]
[1753944748160,0.73425343,3878.0,3877.9,0.001]
[1753944748378,1.10584932,3878.0,3877.9,0.001]
[1753944748679,0.86394932,3878.0,3877.9,0.001]
[1753944748831,0.73425042,3878.0,3877.9,0.001]
[1753944749037,0.76875042,3878.0,3877.9,0.001]
[1753944749837,0.73425042,3878.0,3877.9,0.001]
[1753944750663,3.3128992,3878.0,3877.9,0.001]
[1753944750864,3.98032162,3878.0,3877.9,0.001]
[1753944751070,1.40167284,3878.0,3877.9,0.001]
[1753944751673,3.94582162,3878.0,3877.9,0.001]
[1753944751964,1.36717284,3878.0,3877.9,0.001]
[1753944753187,3.98032162,3878.0,3877.9,0.001]
[1753944753752,3.94582162,3878.0,3877.9,0.001]
[1753944754021,1.36717284,3878.0,3877.9,0.001]
[1753944754689,1.12527284,3878.0,3877.9,0.001]
[1753944754884,3.70392162,3878.0,3877.9,0.001]
[1753944757690,3.94582162,3878.0,3877.9,0.001]
[1753944758699,3.70392162,3878.0,3877.9,0.001]
[1753944758858,5.57884828,3877.7,3877.6,0.001]
[1753944759064,6.32670907,3877.7,3877.6,0.001]
[1753944759364,6.56860907,3877.7,3877.6,0.001]
[1753944760085,6.60310907,3877.7,3877.6,0.001]
[1753944760894,6.56860907,3877.7,3877.6,0.001]
[1753944761092,6.60310907,3877.7,3877.6,0.001]
[1753944761587,2.57891479,3877.6,3877.5,0.001]
[1753944761789,6.97208763,3877.6,3877.5,0.001]
[1753944762299,2.57904781,3877.4,3877.3,0.001]
[1753944762501,6.98389823,3877.4,3877.3,0.001]
[1753944762676,7.22579823,3877.4,3877.3,0.001]
[1753944763697,7.22452127,3877.4,3877.3,0.001]
[1753944763906,7.48853164,3877.4,3877.3,0.001]
[1753944764493,3.32563164,3877.4,3877.3,0.001]
[1753944764696,0.48257346,3877.4,3877.3,0.9338]
[1753944764899,0.24128673,3877.4,3877.3,0.9338]
[1753944766403,0.24128673,3877.4,3877.3,8.32123725]
[1753944767206,0.0085,3878.0,3877.3,8.32123725]
[1753944767411,0.0085,3878.0,3877.9,7.3870382]
[1753944767713,0.0085,3878.0,3877.9,13.00562547]
[1753944768081,0.0085,3878.0,3877.9,13.93842547]
[1753944777917,0.0085,3878.0,3877.9,14.48842547]
[1753944781991,0.006,3878.4,3878.3,3.12844932]
[1753944782228,0.006,3878.4,3878.3,13.19846993]
[1753944782523,0.006,3878.4,3878.3,14.13126993]
[1753944782734,0.01689238,3878.6,3878.5,3.12831635]
[1753944782900,0.01689238,3878.6,3878.5,8.18631635]
[1753944783103,0.01689238,3878.6,3878.5,9.09221635]
[1753944783300,0.01689238,3878.6,3878.5,10.79718498]
[1753944783819,0.01689238,3878.6,3878.5,13.79718498]
[1753944785927,0.004,3878.8,3878.7,3.12818341]
[1753944786116,0.004,3878.8,3878.7,15.90950633]
[1753944786424,0.004,3878.8,3878.7,16.81540633]
[1753944786614,0.004,3878.8,3878.7,18.92527546]
[1753944787408,0.01719554,3880.1,3878.9,3.12805047]
[1753944787716,0.01719554,3880.1,3878.9,8.05605047]
[1753944787921,0.01719554,3880.1,3878.9,8.96195047]
[1753944788328,1e-08,3879.0,3878.9,11.96195047]
[1753944788500,1e-08,3879.0,3878.9,14.10777642]
[1753944788704,1e-08,3879.0,3878.9,20.30377642]
[1753944789936,1e-08,3879.0,3878.9,20.15577642]
[1753944793406,1e-08,3879.0,3878.9,24.40577642]
[1753944796407,0.01719554,3880.1,3879.8,5.35832292]
[1753944796741,0.01719554,3880.1,3879.8,13.04177536]
[1753944797130,0.01719554,3880.1,3879.8,13.94767536]
[1753944797334,2.2118029,3880.8,3879.8,7.66442107]
[1753944797535,0.48231458,3880.7,3880.2,0.55]
[1753944797843,0.24041458,3880.6,3880.5,2.57693269]
[1753944798008,2.2118029,3880.8,3880.7,2.57685469]
[1753944798210,2.45221853,3880.8,3880.7,7.59885469]
[1753944798408,2.2118029,3880.8,3880.7,7.59885469]
[1753944798610,2.45217728,3880.8,3880.7,7.59885469]
[1753944800046,2.69407728,3880.8,3880.7,7.04885469]
[1753944800342,2.97153501,3880.8,3880.7,7.04885469]
[1753944800843,2.72960722,3880.8,3880.7,7.04885469]
[1753944801349,2.971507,3880.8,3880.7,7.04885469]
[1753944802933,3.012007,3880.8,3880.7,4.472]
[1753944803860,3.012007,3880.8,3880.7,3.934]
[1753944806249,2.45214927,3880.8,3880.7,7.06085469]
[1753944806456,2.45214927,3880.8,3880.7,12.77507761]
[1753944806837,2.45243036,3880.8,3880.7,12.77507761]
[1753944807066,2.2118029,3880.8,3880.7,12.77507761]
[1753944807422,2.45253562,3880.8,3880.7,12.77507761]
[1753944809926,2.45262809,3880.8,3880.7,12.77507761]
[1753944810225,2.45462809,3880.8,3880.7,12.77507761]
[1753944810424,2.45462809,3880.8,3880.7,14.3102766]
[1753944816369,2.45462809,3880.8,3880.7,17.3102766]
[1753944817163,1e-08,3880.8,3880.7,17.3102766]
[1753944817332,0.002,3881.2,3881.1,2.57658911]
[1753944817535,0.002,3881.2,3881.1,7.90159374]
[1753944817736,0.002,3881.2,3881.1,8.84349374]
[1753944817952,0.002,3881.2,3881.1,9.39349374]
[1753944818480,0.002,3881.2,3881.1,12.39349374]
[1753944821282,0.002,3881.2,3881.1,17.20181666]
[1753944829506,0.002,3881.2,3881.1,16.25991666]
[1753944829818,0.002,3881.2,3881.1,17.20181666]
[1753944830678,0.002,3881.2,3881.1,11.93349374]
[1753944831012,0.002,3881.2,3881.1,7.37858911]
[1753944832376,0.002,3881.2,3881.1,4.252]
[1753944832699,0.002,3881.2,3881.1,6.82858911]
[1753944833082,0.002,3881.2,3881.1,4.252]
[1753944833284,0.2439,3881.2,3881.1,4.252]
[1753944833484,0.2439,3881.2,3881.1,6.82858911]
[1753944833992,0.002,3881.2,3881.1,4.802]
[1753944834199,0.002,3881.2,3881.1,7.37858911]
[1753944834592,0.002,3881.2,3881.1,8.32048911]
[1753944834911,0.002,3881.2,3881.1,9.89103724]
[1753944835109,0.002,3881.2,3881.1,7.37858911]
[1753944836633,0.002,3881.2,3881.1,6.82858911]
[1753944839407,0.24322677,3881.2,3881.1,6.82858911]
[1753944839914,0.002,3881.2,3881.1,8.32048911]
[1753944840119,0.24322674,3881.2,3881.1,8.32048911]
[1753944842809,0.24329643,3881.2,3881.1,8.32048911]
[1753944845829,0.24329643,3881.2,3881.1,9.89103714]
[1753944850225,0.24329643,3881.2,3881.1,8.32048911]
[1753944850825,0.24329643,3881.2,3881.1,8.28838911]
[1753944853732,0.24329643,3881.2,3881.1,7.37858911]
[1753944853916,0.243616,3881.2,3881.1,7.37858911]
[1753944854109,0.243616,3881.2,3881.1,7.83578911]
[1753944854311,0.243616,3881.2,3881.1,8.28838911]
[1753944858141,0.243616,3881.2,3881.1,4.03638911]
[1753944858309,0.243616,3881.2,3881.1,7.98438911]
[1753944858849,0.24360451,3881.2,3881.1,7.98438911]
[1753944859351,0.24360538,3881.2,3881.1,7.98438911]
[1753944859930,0.24360538,3881.2,3881.1,8.84471203]
[1753944860126,0.24360538,3881.2,3881.1,12.79171203]
[1753944860431,0.24364935,3881.2,3881.1,8.84471203]
[1753944860641,0.24364935,3881.2,3881.1,12.79171203]
[1753944862630,0.24364935,3881.2,3881.1,12.78971203]
[1753944864364,0.24364935,3881.2,3881.1,8.84471203]
[1753944864663,0.24364935,3881.2,3881.1,12.78971203]
[1753944866472,0.24364935,3881.2,3881.1,12.78871203]
[1753944867167,0.24364935,3881.2,3881.1,8.84471203]
[1753944868165,0.24364935,3881.2,3881.1,12.78671203]
[1753944868866,0.24364935,3881.2,3881.1,18.42142814]
[1753944871039,0.02539697,3881.3,3881.2,2.57652272]
[1753944871239,0.02539697,3881.3,3881.2,6.12652272]
[1753944871462,0.02539697,3881.3,3881.2,7.03632272]
[1753944871655,0.02539697,3881.3,3881.2,6.12652272]
[1753944871826,0.02539697,3881.3,3881.2,13.15470463]
[1753944874669,0.02539697,3881.3,3881.2,17.40470463]
[1753944876864,0.02739697,3881.3,3881.2,17.40470463]
[1753944877368,0.10498389,3881.4,3881.3,3.12645634]
[1753944877548,0.10498389,3881.4,3881.3,4.02485634]
[1753944877749,0.10498389,3881.4,3881.3,10.10630405]
[1753944885874,0.10498389,3881.4,3881.3,13.10630405]
[1753944887243,0.0174987,3881.5,3881.4,6.12638996]
[1753944887568,0.0174987,3881.5,3881.4,7.02478996]
[1753944888140,0.34010175,3882.9,3881.7,6.12619084]
[1753944888345,0.2419,3882.7,3881.8,10.63712447]
[1753944888562,0.28128147,3881.9,3881.8,10.63712447]
[1753944889156,0.28128147,3881.9,3881.8,11.10292447]
[1753944889468,0.04,3881.9,3881.8,11.10292447]
[1753944889663,0.04,3881.9,3881.8,13.42181496]
[1753944889968,0.04,3881.9,3881.8,8.44501496]
[1753944890277,0.2819,3881.9,3881.8,6.51812447]
[1753944890570,0.04,3881.9,3881.8,6.51812447]
[1753944891874,0.52308892,3881.9,3881.8,6.51812447]
[1753944893186,0.28118892,3881.9,3881.8,6.51812447]
[1753944895485,0.28118892,3881.9,3881.8,2.57612447]
[1753944895781,0.28118892,3881.9,3881.8,6.51612447]
[1753944896448,0.28118892,3881.9,3881.8,8.873756]
[1753944897763,0.27973985,3881.9,3881.8,7.96452447]
[1753944898797,0.28173985,3881.9,3881.8,7.96452447]
[1753944899096,0.28173985,3881.9,3881.8,3.12612447]
[1753944899383,0.28173985,3881.9,3881.8,7.06412447]
[1753944899549,0.28173985,3881.9,3881.8,7.96252447]
[1753944899748,0.28173985,3881.9,3881.8,9.016396]
[1753944902657,0.02593657,3883.5,3881.8,9.44027153]
[1753944902961,0.2824,3883.2,3882.2,0.55]
[1753944903159,0.2824,3883.2,3882.7,2.57548154]
[1753944903390,0.0405,3883.1,3882.6,2.57553676]
[1753944903704,0.2419,3883.0,3882.2,3.12581352]
[1753944903903,0.2419,3883.0,3882.0,0.4278]
[1753944903904,0.0405,3882.9,3882.3,3.958]
[1753944904240,0.2419,3882.8,3882.3,2.57579221]
[1753944904372,0.02593657,3883.5,3882.4,6.53370635]
[1753944904567,0.2419,3882.8,3882.5,6.53363924]
[1753944904895,0.2419,3882.8,3882.6,3.958]
[1753944905194,0.2419,3882.8,3882.1,0.8796]
[1753944905195,0.2419,3882.8,3882.7,3.958]
[1753944905495,0.2419,3883.0,3882.7,3.958]
[1753944905857,0.06280835,3883.3,3882.7,3.958]
[1753944906056,0.2419,3882.9,3882.7,3.958]
[1753944906687,0.2419,3883.2,3882.7,3.958]
[1753944906994,0.02230835,3883.3,3882.8,0.8796]
[1753944907190,0.02230835,3883.3,3882.9,6.53137812]
[1753944907372,0.02230835,3883.3,3882.9,7.41098017]
[1753944907559,0.02230835,3883.3,3883.0,3.45486844]
[1753944907886,0.02230835,3883.3,3883.2,2.57519571]
[1753944908617,0.02230835,3883.3,3883.2,3.45479571]
[1753944909268,0.02230835,3883.3,3883.2,5.00510659]
[1753944909474,0.02230835,3883.3,3883.2,4.00479571]
[1753944910106,0.02230835,3883.3,3883.2,2.57519571]
[1753944910310,0.02230835,3883.3,3883.2,3.45479571]
[1753944911207,0.02230835,3883.3,3883.2,2.57519571]
[1753944911395,0.02230835,3883.3,3883.1,3.973]
[1753944913204,0.02230835,3883.3,3883.1,6.54821684]
[1753944913386,0.02230835,3883.3,3883.1,3.973]
[1753944913585,0.02230835,3883.3,3883.1,6.54825877]
[1753944913979,0.02230835,3883.3,3883.1,3.973]
[1753944914604,0.02230835,3883.3,3883.1,6.54824663]
[1753944914777,0.26312303,3883.3,3883.1,3.973]
[1753944914978,0.02230835,3883.3,3883.1,3.973]
[1753944915407,0.24081561,3883.2,3883.1,3.973]
[1753944915609,0.24081561,3883.2,3883.1,3.956]
[1753944915774,0.48271561,3883.2,3883.1,3.956]
[1753944915978,0.48271561,3883.2,3882.6,2.57558345]
[1753944916180,0.48271561,3883.2,3882.4,3.45532613]
[1753944916181,0.24081561,3883.1,3882.7,3.956]
[1753944916515,0.24081561,3883.0,3882.7,3.956]
[1753944916806,0.24081561,3882.9,3882.7,3.956]
[1753944917009,0.02230835,3883.3,3882.7,3.956]
[1753944917212,0.2419,3883.1,3882.7,3.956]
[1753944917504,0.2419,3883.1,3882.4,2.57570598]
[1753944917505,0.24085782,3883.0,3882.4,2.57570598]
[1753944917686,0.24085782,3882.9,3882.5,3.955]
[1753944917877,0.24085782,3882.8,3882.5,6.98244107]
[1753944918078,0.2419,3883.2,3882.5,7.41024107]
[1753944918283,0.24089543,3883.1,3882.5,7.41024143]
[1753944918489,0.59020909,3883.2,3882.2,3.55]
[1753944918490,0.48279543,3883.0,3882.6,3.954]
[1753944918693,0.48279543,3882.9,3882.1,1.0018]
[1753944918903,0.24089543,3882.8,3882.2,3.954]
[1753944919108,0.24089543,3882.7,3882.3,3.02754619]
[1753944919407,0.24091512,3882.6,3882.4,0.8796]
[1753944919607,0.2419,3883.1,3882.4,0.8796]
[1753944919608,0.2419,3883.1,3882.5,3.954]
[1753944919782,0.55897657,3883.1,3882.5,3.954]
[1753944919976,0.31707657,3883.1,3882.3,2.57577982]
[1753944920183,0.31707657,3883.1,3882.4,4.4058]
[1753944920405,0.31707657,3883.1,3882.4,6.98152052]
[1753944920591,0.2409077,3883.0,3882.5,3.45520108]
[1753944920783,0.2409077,3882.9,3882.5,2.57560108]
[1753944920983,0.2409077,3882.9,3882.6,0.8796]
[1753944921180,0.2409077,3882.9,3882.7,3.953]
[1753944921482,0.002,3883.0,3882.8,0.8796]
[1753944921696,0.24090884,3882.9,3882.8,0.8796]
[1753944922511,0.24090884,3882.9,3882.8,0.4518]
[1753944923015,0.24090884,3882.9,3882.7,3.953]
[1753944923313,0.24090884,3882.8,3882.7,3.953]
[1753944924921,0.24090884,3882.8,3882.7,4.8326]
[1753944927485,0.24090884,3882.8,3882.7,4.4048]
[1753944927797,0.24090884,3882.8,3882.7,4.8326]
[1753944928917,0.24090884,3882.8,3882.7,3.953]
[1753944929226,0.24090884,3882.8,3882.7,4.4048]
[1753944929722,0.24090884,3882.8,3882.7,4.8326]
[1753944929926,0.24090884,3882.8,3882.7,3.953]
[1753944930426,0.24090884,3882.8,3882.7,3.948]
[1753944932104,0.24090884,3882.8,3882.7,3.947]
[1753944932531,0.54856236,3882.8,3881.8,0.001]
[1753944932731,0.24090884,3882.7,3881.9,6.52299704]
[1753944932933,0.24090884,3882.6,3881.9,3.45559704]
[1753944933092,0.24090884,3882.5,3882.0,4.4265]
[1753944933293,0.24090884,3882.4,3882.1,0.9147]
[1753944933497,0.24090884,3882.3,3882.1,0.9147]
[1753944933697,0.24110871,3882.2,3882.1,0.9147]
[1753944933897,0.24110871,3882.2,3882.1,7.9866254]
[1753944934139,0.24110871,3882.2,3882.1,9.04298835]
[1753944934429,0.2602904,3883.0,3882.2,2.57582424]
[1753944934637,0.24107365,3882.9,3882.3,6.52378869]
[1753944934821,0.24107365,3882.8,3882.4,3.05522038]
[1753944935023,0.24107365,3882.7,3882.5,4.3832]
[1753944935230,0.24107365,3882.6,3882.5,3.948]
[1753944935738,0.24107365,3882.6,3882.2,2.57585904]
[1753944935943,0.2602904,3883.0,3882.5,0.9147]
[1753944936114,0.24106422,3882.9,3882.6,3.947]
[1753944936434,0.24106422,3882.8,3882.7,0.9147]
[1753944936740,0.24104796,3882.8,3882.7,0.4795]
[1753944937850,0.24104796,3882.8,3882.6,3.947]
[1753944938069,0.24104796,3882.7,3882.6,3.947]
[1753944938382,0.24104796,3882.7,3882.6,3.946]
[1753944939870,0.24104796,3882.7,3882.1,0.9147]
[1753944940163,0.2602904,3883.0,3882.2,4.4255]
[1753944940164,0.24104796,3882.6,3882.2,4.4255]
[1753944940361,0.24104796,3882.5,3882.3,0.9147]
[1753944940667,0.24104796,3882.4,3882.2,3.946]
[1753944940971,0.24104796,3882.3,3882.2,3.946]
[1753944941150,0.24104796,3882.3,3882.2,0.4795]
[1753944941471,0.24104796,3882.3,3882.2,4.8597]
[1753944941849,0.24104796,3882.3,3882.2,0.9147]
[1753944942045,0.24104796,3882.3,3882.2,4.8587]
[1753944944339,0.24138094,3882.3,3882.2,4.8587]
[1753944945362,0.24145966,3882.3,3882.2,4.8587]
[1753944946082,0.24145966,3882.3,3882.2,4.4235]
[1753944946244,0.24145966,3882.3,3882.2,4.8587]
[1753944949770,0.24145966,3882.3,3882.1,0.001]
[1753944949968,3.0592187,3882.2,3882.1,0.001]
[1753944950174,3.66125953,3882.2,3881.9,3.943]
[1753944950367,3.05887696,3882.1,3881.8,0.001]
[1753944950596,0.48294977,3882.0,3881.8,0.001]
[1753944950874,0.24145966,3881.9,3881.8,0.001]
[1753944951675,0.24145966,3881.9,3881.8,0.4805]
[1753944951874,0.24145966,3881.9,3881.8,0.9157]
[1753944956253,0.24110257,3881.9,3881.8,0.9157]
[1753944959508,0.24110257,3881.9,3881.8,7.91659447]
[1753944959709,0.24110257,3881.9,3881.8,5.34047]
[1753944960078,0.24110257,3881.9,3881.8,7.91659447]
[1753944964608,0.24110257,3881.9,3881.8,0.001]
[1753944964809,0.24110257,3881.9,3881.8,3.939]
[1753944965217,0.24110257,3881.9,3881.8,7.47172447]
[1753944965511,0.24110257,3881.9,3881.8,4.8956]
[1753944965913,0.24110257,3881.9,3881.8,0.001]
[1753944966206,0.24110257,3881.9,3881.8,3.939]
[1753944968101,0.24120925,3881.9,3881.8,3.939]
[1753944970584,0.51020882,3881.9,3881.8,3.939]
[1753944970923,0.54981822,3881.9,3881.8,3.939]
[1753944971120,0.24120925,3881.9,3881.8,3.939]
[1753944971484,0.24128884,3881.9,3881.8,3.939]
[1753944973588,0.24128884,3881.9,3881.8,4.422]